bitfinex/quotes_ETHUSD_20241030
["timestamp","ask_amount","ask_price","bid_price","bid_amount"]
[1730287926517,0.7968,2667.3,2666.6,0.45413502]
[1730287926929,0.7653,2667.5,2666.9,0.7874]
[1730287930335,0.7653,2667.5,2666.7,3.0]
[1730287930571,0.7653,2667.5,2666.7,1.25027301]
[1730287930685,0.7653,2667.5,2666.6,0.37915]
[1730287930886,0.7653,2667.3,2666.6,0.37915]
[1730287932101,0.7653,2667.3,2666.7,0.07498483]
[1730287932626,0.7653,2667.3,2666.7,0.84928483]
[1730287932789,0.8061,2667.6,2666.9,4.1735801]
[1730287932983,0.8061,2667.6,2667.2,0.7608]
[1730287933221,0.82,2668.3,2667.2,0.7608]
[1730287933415,0.89500098,2668.2,2667.3,0.07497012]
[1730287933622,0.89500098,2668.2,2667.2,0.7608]
[1730287934194,0.82,2668.2,2667.2,0.43108]
[1730287934425,0.82,2668.0,2667.2,0.43108]
[1730287935617,0.82,2668.0,2667.3,3.83576606]
[1730287936387,0.82,2668.0,2667.3,3.7608]
[1730287936631,0.82,2668.0,2667.4,0.78154601]
[1730287937668,0.82,2668.0,2667.2,0.43108]
[1730287938817,0.82,2668.0,2667.2,0.55]
[1730287939019,0.82,2668.0,2667.1,0.55]
[1730287940042,0.82,2668.0,2667.0,3.0]
[1730287940213,0.8066,2667.8,2666.7,3.0]
[1730287940420,0.88160098,2667.7,2666.8,0.66235801]
[1730287942416,0.88160098,2667.7,2666.9,0.3754]
[1730287943143,0.88160098,2667.7,2667.0,0.07497833]
[1730287943356,0.8066,2667.7,2667.0,0.07497833]
[1730287944323,0.8066,2667.7,2667.1,0.9254]
[1730287947752,0.8066,2667.7,2667.2,0.84299]
[1730287949516,4.4301801,2667.7,2666.8,0.3754]
[1730287949715,0.85710098,2667.6,2666.8,0.3754]
[1730287950226,0.7821,2667.4,2666.8,0.3754]
[1730287950527,0.7821,2667.2,2666.2,0.4316543]
[1730287950721,0.7821,2667.2,2666.2,0.87638774]
[1730287950936,0.7821,2667.2,2666.4,0.3754]
[1730287951912,0.7821,2667.2,2666.3,0.3754]
[1730287952144,0.7821,2667.2,2666.3,0.85667344]
[1730287953025,0.7821,2667.2,2666.5,0.55]
[1730287953437,0.7821,2667.2,2666.5,4.1735801]
[1730287953755,0.7821,2667.2,2666.6,0.3754]
[1730287954831,0.7581,2667.4,2666.8,3.9989801]
[1730287955117,0.7581,2667.4,2667.0,0.3754]
[1730287955356,0.7581,2667.4,2667.1,0.0749777]
[1730287957325,0.7581,2667.4,2667.0,0.3754]
[1730287957676,0.7581,2667.4,2667.1,0.07497773]
[1730287958157,0.7581,2667.4,2667.0,0.3754]
[1730287958461,0.7581,2667.4,2667.1,0.75367965]
[1730287958638,0.7581,2667.4,2667.1,0.82865726]
[1730287960063,0.58682488,2667.5,2667.1,5.15145975]
[1730287960274,0.7502,2667.7,2667.1,5.15145975]
[1730287960559,0.7502,2667.7,2667.3,0.3754]
[1730287962356,0.7502,2667.7,2667.2,0.3754]
[1730287969145,0.7502,2667.7,2667.3,0.55]
[1730287969469,1.40493711,2667.9,2667.3,0.55]
[1730287969980,1.40493711,2667.9,2667.4,0.39254]
[1730287971562,0.7688,2667.8,2667.4,0.39254]
[1730287971767,0.7688,2667.8,2667.1,0.9254]
[1730287972069,0.07500098,2667.7,2667.1,0.3754]
[1730287972237,0.7688,2667.7,2667.1,0.3754]
[1730287972938,0.7688,2667.7,2666.9,0.3754]
[1730287973174,0.7688,2667.7,2666.9,0.73775801]
[1730287973772,0.7688,2667.7,2666.9,3.73775801]
[1730287980916,0.87350098,2667.6,2666.6,0.3751]
[1730287981103,0.87350098,2667.6,2666.6,3.3751]
[1730287982838,0.87350098,2667.6,2666.7,0.07498386]
[1730287985135,0.87350098,2667.6,2666.6,3.3751]
[1730287985338,0.87350098,2667.6,2666.7,0.69986801]
[1730287985527,0.87350098,2667.6,2666.8,0.07498384]
[1730287985937,0.87350098,2667.6,2666.7,0.69986801]
[1730287987550,0.87350098,2667.6,2666.2,0.62492171]
[1730287987551,0.87350098,2667.6,2666.6,0.3751]
[1730287988447,0.87350098,2667.6,2666.3,0.3751]
[1730287991443,0.87350098,2667.6,2666.4,0.07499595]
[1730287992472,0.87350098,2667.6,2666.5,0.3751]
[1730287994203,0.87350098,2667.6,2666.6,0.07498559]
[1730287994400,0.87350098,2667.6,2666.6,0.93633216]
[1730287995073,0.87350098,2667.6,2666.6,0.86134657]
[1730287996319,0.87350098,2667.6,2666.7,3.6235801]
[1730287996721,0.7985,2667.6,2666.8,0.45008141]
[1730287996904,0.7985,2667.6,2667.0,3.9986801]
[1730287997587,0.7985,2667.6,2667.1,3.55]
[1730287997788,0.7985,2667.6,2667.3,3.9986801]
[1730287997991,0.7985,2667.6,2667.4,0.07496843]
[1730287998342,0.7985,2667.6,2667.3,3.9986801]
[1730287998600,0.7985,2667.6,2667.4,0.77496801]
[1730287998681,1.41383711,2667.9,2667.4,0.77496801]
[1730287999619,1.41383711,2667.9,2667.5,0.07496333]
[1730288000204,1.41383711,2667.9,2667.5,0.9251]
[1730288000409,0.58673711,2667.9,2667.6,3.6235801]
[1730288000728,0.7915,2668.6,2667.9,0.3751]
[1730288000878,0.58661586,2668.4,2668.1,3.6235801]
[1730288001079,0.58661586,2668.4,2668.2,0.44480231]
[1730288001497,0.58661586,2668.4,2668.2,0.36985286]
[1730288001825,0.58661586,2668.4,2668.2,0.44480122]
[1730288002225,0.7915,2668.8,2668.3,0.55]
[1730288003075,0.7915,2668.8,2668.3,4.1735801]
[1730288003307,1.2,2668.9,2668.5,3.6235801]
[1730288004221,1.2,2668.9,2668.4,0.4543433]
[1730288004924,1.2,2668.9,2668.6,0.81580407]
[1730288006535,1.2,2668.9,2668.6,3.81580407]
[1730288006831,1.2,2668.9,2668.8,3.6235801]
[1730288006995,1.2,2668.9,2668.8,4.36751852]
[1730288007202,1.2,2668.9,2668.8,7.91751852]
[1730288008629,1.2,2668.9,2668.6,3.05620407]
[1730288009330,1.2,2668.9,2668.6,0.05620407]
[1730288012129,1.2,2668.9,2668.6,0.43130407]
[1730288012308,1.2,2668.9,2668.6,0.05620407]
[1730288012502,1.2,2668.9,2668.7,0.38055293]
[1730288012707,1.2,2668.9,2668.8,0.55]
[1730288012908,1.2,2668.9,2668.8,3.55]
[1730288014222,3.31254743,2670.0,2668.8,3.55]
[1730288014431,3.31254743,2670.0,2668.9,0.82758005]
[1730288014639,3.89891546,2670.0,2668.9,0.77758005]
[1730288016046,3.89891546,2670.0,2668.8,0.55]
[1730288017266,0.1778,2669.9,2668.8,0.55]
[1730288019535,0.1778,2669.9,2668.9,3.7871]
[1730288019736,0.1778,2669.9,2669.0,0.55]
[1730288019927,0.1778,2669.8,2668.9,0.7871]
[1730288020848,0.1778,2669.5,2668.6,0.84330407]
[1730288021927,0.1778,2669.5,2668.7,0.07492773]
[1730288022474,0.1778,2669.5,2668.7,0.3751]
[1730288022647,0.1778,2669.5,2668.8,0.55]
[1730288023130,0.1778,2669.5,2668.7,0.3751]
[1730288026571,0.1778,2669.5,2668.8,0.07492786]
[1730288026936,0.1778,2669.5,2668.8,0.07492821]
[1730288027967,0.1778,2669.5,2668.9,0.8316]
[1730288029176,0.1778,2669.5,2668.9,1.2067]
[1730288030552,0.1778,2669.5,2668.8,0.3751]
[1730288031757,0.1778,2669.5,2668.7,0.3751]
[1730288032786,0.1778,2669.5,2668.6,0.43130407]
[1730288033086,0.1778,2669.5,2668.8,0.3751]
[1730288033289,0.1778,2669.5,2668.9,0.07492788]
[1730288033655,0.1778,2669.5,2669.0,0.7748]
[1730288034283,0.1778,2669.5,2669.0,1.1499]
[1730288036508,0.1778,2669.5,2669.0,0.3751]
[1730288037797,0.1778,2669.5,2668.9,0.3751]
[1730288039059,0.1778,2669.5,2668.7,0.55]
[1730288039368,0.1778,2669.5,2668.7,0.47882041]
[1730288039502,0.1778,2669.5,2668.6,0.05620407]
[1730288041194,0.1778,2669.2,2668.3,0.3751]
[1730288041576,0.1778,2669.6,2668.5,0.3751]
[1730288041763,0.1778,2669.4,2668.5,0.3751]
[1730288041965,0.1778,2669.4,2668.6,0.07493718]
[1730288042170,0.1778,2669.4,2668.5,0.3751]
[1730288042404,0.1778,2669.4,2668.6,0.784]
[1730288042707,0.1778,2669.4,2668.7,0.3751]
[1730288043069,0.1778,2669.4,2668.8,0.07492964]
[1730288043672,0.1778,2669.4,2668.7,0.3751]
[1730288044369,0.1778,2669.4,2668.8,0.07492967]
[1730288044787,0.1778,2669.4,2668.7,0.3751]
[1730288044990,0.1778,2669.4,2668.8,0.07492961]
[1730288045222,0.1778,2669.4,2668.7,0.3751]
[1730288045906,0.1778,2669.4,2668.8,0.07492962]
[1730288046693,0.1778,2669.4,2668.8,0.07492963]
[1730288047011,0.1778,2669.4,2668.7,0.3751]
[1730288049784,0.1778,2669.4,2668.3,1.2235122]
[1730288049987,0.1778,2669.4,2668.6,0.55]
[1730288050343,0.1778,2669.4,2668.5,0.3751]
[1730288050907,0.1778,2669.4,2668.4,0.3751]
[1730288053023,0.1778,2669.4,2668.5,0.9251]
[1730288053185,0.1778,2669.4,2668.6,0.8975304]
[1730288053380,0.1778,2669.4,2668.6,0.8226]
[1730288058223,0.1778,2669.4,2668.7,0.55]
[1730288063480,0.1778,2669.4,2668.7,3.55]
[1730288063592,0.1778,2669.4,2668.8,0.43726]
[1730288063791,0.1778,2669.4,2668.7,0.55]
[1730288064097,0.1778,2669.4,2668.9,0.9251]
[1730288064296,0.1778,2669.6,2669.1,0.8043]
[1730288066197,0.1778,2669.6,2668.9,1.7294]
[1730288066527,0.1778,2669.6,2669.0,0.84804]
[1730288067340,0.1778,2669.6,2669.0,0.3751]
[1730288067918,0.1778,2669.6,2669.1,0.07492107]
[1730288068122,0.1778,2669.6,2669.0,0.3751]
[1730288070252,3.6235801,2670.0,2669.1,0.55]
[1730288070463,0.01,2670.5,2669.1,0.55]
[1730288070464,0.1778,2669.9,2669.1,0.55]
[1730288071240,0.1778,2669.9,2668.7,3.6235801]
[1730288071241,0.1778,2669.9,2669.0,0.9251]
[1730288071828,0.1778,2669.9,2669.0,0.3751]
[1730288072248,0.1778,2669.9,2668.9,0.55]
[1730288072558,0.1778,2669.6,2668.5,0.8051]
[1730288073276,0.1778,2669.6,2668.6,0.07493042]
[1730288073829,0.1778,2669.6,2668.6,0.55]
[1730288076568,0.1778,2669.6,2668.8,0.55]
[1730288076733,0.1778,2669.6,2668.9,0.07492488]
[1730288077562,0.1778,2669.6,2668.8,0.55]
[1730288077563,0.1778,2669.6,2669.0,1.3389]
[1730288082490,0.1778,2669.6,2669.1,0.3751]
[1730288086098,3.6235801,2669.4,2668.5,0.8253]
[1730288086251,0.1778,2669.3,2668.5,0.8253]
[1730288086903,0.1778,2669.3,2668.3,0.8815122]
[1730288087047,0.1778,2669.3,2668.4,0.3751]
[1730288087459,0.1778,2669.3,2668.6,0.3751]
[1730288087688,3.0,2670.3,2668.6,0.3751]
[1730288087689,3.6235801,2669.1,2668.6,0.3751]
[1730288087892,0.1778,2669.0,2668.6,0.3751]
[1730288088451,0.1778,2669.0,2668.3,0.0562122]
[1730288088964,0.1778,2669.2,2668.5,0.3751]
[1730288089161,0.1778,2669.2,2668.6,0.07493859]
[1730288091286,0.1778,2669.2,2668.8,0.3751]
[1730288091486,0.1778,2669.2,2668.8,0.45003075]
[1730288092063,0.1778,2669.2,2668.8,0.3751]
[1730288092275,0.1778,2669.2,2668.6,0.3751]
[1730288093415,0.1778,2669.2,2668.5,0.3751]
[1730288094178,0.1778,2669.2,2668.6,0.07493679]
[1730288095404,0.1778,2669.2,2668.7,0.3751]
[1730288097091,0.1778,2669.2,2668.8,0.0749318]
[1730288097301,0.1778,2669.2,2668.7,1.1315]
[1730288097502,0.1778,2669.2,2668.8,0.07493178]
[1730288097879,0.1778,2669.2,2668.7,1.1315]
[1730288098083,0.1778,2669.2,2668.8,0.0749318]
[1730288098310,0.1778,2669.2,2668.7,1.1315]
[1730288098802,0.1778,2669.2,2668.7,0.3751]
[1730288099879,0.1778,2669.2,2668.7,0.9251]
[1730288102509,0.76422138,2669.2,2668.7,0.9251]
[1730288103717,0.58642138,2669.2,2668.7,0.9251]
[1730288103869,0.58642138,2669.2,2669.1,0.9251]
[1730288103870,0.40862138,2669.2,2669.1,0.9251]
[1730288104212,0.1778,2669.7,2669.1,0.3751]
[1730288104779,0.1778,2669.6,2669.1,0.3751]
[1730288105118,0.1778,2669.6,2668.6,0.3751]
[1730288105330,0.1778,2669.6,2668.6,1.11903801]
[1730288106077,0.1778,2669.6,2668.8,0.3751]
[1730288107226,0.1778,2669.6,2668.7,0.07493202]
[1730288107719,0.1778,2669.6,2668.9,0.3751]
[1730288108599,0.1778,2669.6,2668.6,0.3751]
[1730288108801,0.1778,2669.6,2668.8,0.3751]
[1730288109013,0.1778,2669.3,2668.4,0.3751]
[1730288111231,0.1778,2669.3,2668.5,0.9251]
[1730288111916,0.1778,2669.3,2668.5,0.3751]
[1730288112438,0.1778,2669.3,2668.3,0.50625256]
[1730288112724,0.1778,2669.3,2668.3,0.4313122]
[1730288113522,0.1778,2669.3,2668.4,0.9251]
[1730288122137,0.1778,2669.3,2668.3,0.0562122]
[1730288124827,0.1778,2669.0,2668.0,0.3751]
[1730288125479,0.1778,2669.0,2668.2,0.3751]
[1730288128064,0.1778,2669.0,2668.4,0.3751]
[1730288130195,3.6235801,2668.8,2668.2,0.3751]
[1730288130374,3.6235801,2668.8,2667.3,0.01]
[1730288130375,3.6235801,2668.5,2667.8,0.3751]
[1730288130571,0.1778,2668.4,2667.8,0.3751]
[1730288131070,0.1778,2668.4,2667.5,0.3751]
[1730288132075,0.1778,2668.4,2667.8,0.3751]
[1730288132468,0.1778,2668.4,2668.0,0.3751]
[1730288133103,0.1778,2668.4,2668.1,0.62495196]
[1730288133410,0.1778,2668.8,2668.2,0.3751]
[1730288133893,0.1778,2668.8,2668.4,0.3751]
[1730288134258,0.1778,2668.8,2668.5,0.12294269]
[1730288135073,0.1778,2668.8,2668.4,0.3751]
[1730288135278,0.1778,2668.8,2668.6,0.12305369]
[1730288135555,0.1778,2668.8,2668.4,0.3751]
[1730288135891,0.1778,2668.8,2668.5,0.12305369]
[1730288136817,0.1778,2668.8,2668.6,0.12305369]
[1730288137016,0.1778,2668.8,2668.4,0.3751]
[1730288137181,0.1778,2668.8,2668.7,0.12305369]
[1730288137384,0.1778,2668.8,2668.4,0.3751]
[1730288137617,0.1778,2668.8,2668.5,0.12305369]
[1730288138017,0.1778,2668.8,2668.3,0.3751]
[1730288138224,3.0,2669.5,2668.6,1.27345369]
[1730288138225,0.1778,2669.5,2668.6,1.27345369]
[1730288138518,0.1778,2669.4,2668.7,0.9251]
[1730288138817,0.1778,2669.4,2668.8,0.12298601]
[1730288140119,0.1778,2669.4,2668.6,0.07493658]
[1730288140583,0.1778,2669.4,2668.7,0.12290482]
[1730288141386,0.1778,2669.4,2668.8,0.3751]
[1730288141587,0.1778,2669.4,2668.9,0.49800753]
[1730288142302,0.1778,2669.4,2668.9,0.12290753]
[1730288142741,0.1778,2669.4,2668.7,0.55]
[1730288142969,0.1778,2669.4,2669.0,0.12292647]
[1730288143143,0.1778,2669.4,2668.6,0.9251]
[1730288143305,0.1778,2669.4,2669.1,0.12292647]
[1730288143623,0.1778,2669.4,2668.6,0.9251]
[1730288144002,0.1778,2669.4,2668.7,0.12291024]
[1730288144207,0.1778,2669.4,2668.5,0.3751]
[1730288144409,0.1778,2669.4,2668.6,0.49801024]
[1730288144737,0.1778,2669.4,2668.6,0.12291024]
[1730288145121,0.1778,2669.4,2668.5,0.55]
[1730288145317,0.1778,2669.4,2668.7,0.12291024]
[1730288145647,0.1778,2669.4,2668.8,0.12291024]
[1730288146107,0.1778,2669.4,2668.3,0.3751]
[1730288146428,0.1778,2669.4,2668.4,0.9251]
[1730288146613,0.1778,2669.4,2668.4,0.7296449]
[1730288156460,1.61853361,2669.2,2668.4,0.7296449]
[1730288156674,0.1778,2669.1,2668.4,0.7296449]
[1730288158063,0.1778,2669.1,2668.5,0.62494139]
[1730288158285,0.1778,2669.1,2668.5,0.55]
[1730288158486,0.1778,2669.1,2668.6,0.41267123]
[1730288158992,0.1778,2669.1,2668.6,1.21257123]
[1730288160902,0.1778,2669.1,2668.6,2.83110484]
[1730288161171,0.1778,2669.7,2669.1,0.7646]
[1730288161395,0.1778,2669.7,2669.2,0.31323442]
[1730288161649,0.1778,2669.7,2669.3,0.12285338]
[1730288162634,0.1778,2669.7,2669.4,0.3751]
[1730288162838,0.5863174,2670.1,2669.4,0.3751]
[1730288163158,0.1778,2670.0,2669.6,0.3751]
[1730288163541,0.1778,2670.0,2669.7,0.49783703]
[1730288164801,0.1778,2670.4,2669.7,0.49783703]
[1730288167247,0.1778,2670.4,2669.7,0.12273703]
[1730288167543,0.1778,2670.4,2669.7,0.55]
[1730288167712,0.1778,2670.4,2669.7,1.3095]
[1730288167919,0.1778,2670.4,2669.8,0.55321633]
[1730288168153,0.1778,2670.4,2669.9,0.0749007]
[1730288168740,0.1778,2670.4,2670.0,0.1222474]
[1730288169982,0.1778,2670.4,2669.7,1.6846]
[1730288170178,0.1778,2670.4,2670.1,0.12221496]
[1730288170385,0.1778,2670.4,2669.7,0.9251]
[1730288170545,0.1778,2670.4,2670.2,0.12221496]
[1730288170747,0.1778,2670.4,2669.8,0.39251]
[1730288170946,0.1778,2670.4,2670.3,0.12221225]
[1730288171177,0.1778,2670.4,2669.8,0.39251]
[1730288171485,0.1778,2670.4,2669.9,0.12221225]
[1730288173095,0.1778,2670.4,2670.0,0.7631]
[1730288173725,0.1778,2670.4,2670.1,0.11454559]
[1730288174016,0.1778,2670.8,2670.1,0.18944515]
[1730288174701,0.1778,2670.8,2670.1,0.11454559]
[1730288178635,0.1778,2671.1,2670.4,4.3668]
[1730288178938,0.1778,2671.1,2670.5,0.97988406]
[1730288179232,0.7638259,2671.1,2670.5,0.97988406]
[1730288179387,0.1778,2671.1,2670.5,0.97988406]
[1730288179591,0.1778,2671.1,2670.5,0.90500053]
[1730288179834,0.1778,2671.1,2670.6,0.52718005]
[1730288180219,0.1778,2671.1,2670.7,0.10697974]
[1730288184767,0.1778,2671.1,2670.4,0.9251]
[1730288185039,0.1778,2671.1,2670.2,0.7969]
[1730288185245,0.1778,2671.1,2670.3,0.10697974]
[1730288185448,0.1778,2671.1,2670.3,0.45518771]
[1730288185658,3.79120793,2671.0,2669.8,0.39251]
[1730288185946,0.1778,2670.8,2669.5,4.36460793]
[1730288186173,0.1778,2670.8,2670.0,0.10333253]
[1730288186640,0.1778,2670.8,2669.6,0.3751]
[1730288186944,0.1778,2670.8,2670.0,0.10333253]
[1730288187738,0.1778,2670.8,2670.0,0.09613253]
[1730288188247,0.1778,2670.8,2670.0,0.09533253]
[1730288188407,0.1778,2670.8,2670.0,0.08893253]
[1730288188735,0.1778,2670.8,2670.0,0.08813253]
[1730288189108,0.1778,2670.8,2670.0,0.08733253]
[1730288194012,0.1778,2670.8,2670.0,0.16222925]
[1730288194349,0.1778,2670.8,2670.0,0.08733253]
[1730288194645,0.1778,2670.8,2670.0,0.16222925]
[1730288195234,0.1778,2670.8,2670.0,0.08733253]
[1730288196518,3.79120793,2670.7,2670.0,0.08733253]
[1730288196726,0.1778,2670.6,2670.0,0.08733253]
[1730288196992,3.0,2670.6,2669.9,0.05617825]
[1730288197133,0.1778,2670.3,2669.9,0.05617825]
[1730288197933,0.1778,2670.3,2669.2,0.3751]
[1730288198136,0.1778,2670.3,2669.4,0.3751]
[1730288198350,0.1778,2670.3,2669.4,0.45001555]
[1730288198648,0.1778,2670.3,2669.5,0.1029229]
[1730288198850,0.1778,2670.3,2669.6,0.3751]
[1730288199456,0.1778,2670.3,2669.7,0.1029229]
[1730288200119,0.1778,2670.3,2669.4,0.3751]
[1730288200322,0.1778,2670.3,2669.8,0.1029229]
[1730288200555,0.1778,2670.3,2669.4,0.45001537]
[1730288200728,0.1778,2670.3,2669.9,0.1029229]
[1730288200923,0.1778,2670.3,2669.4,0.45001542]
[1730288200924,0.1778,2670.3,2669.4,0.3751]
[1730288201147,0.1778,2670.3,2669.4,0.45001542]
[1730288201362,0.1778,2670.3,2669.5,0.1029229]
[1730288207372,0.1778,2670.3,2669.6,0.3751]
[1730288207844,0.1778,2670.3,2669.7,0.1029229]
[1730288209338,3.79120793,2670.3,2669.7,0.1029229]
[1730288209586,0.1778,2670.2,2669.7,0.1029229]
[1730288209872,0.1778,2670.2,2669.1,0.3751]
[1730288210088,3.61340793,2670.0,2669.2,0.10306283]
[1730288210396,0.1778,2669.9,2669.2,0.10306283]
[1730288210745,0.1778,2669.9,2668.9,0.3751]
[1730288210950,0.1778,2669.9,2669.3,0.10337491]
[1730288211181,0.1778,2669.9,2668.9,0.3751]
[1730288211549,0.1778,2669.9,2669.1,0.3751]
[1730288212184,0.1778,2669.9,2669.2,0.10337491]
[1730288213286,0.1778,2669.9,2668.7,0.3751]
[1730288213487,0.1778,2669.9,2668.9,0.3751]
[1730288213990,0.1778,2669.9,2669.1,0.3751]
[1730288214290,0.1778,2669.8,2669.2,0.10343144]
[1730288215451,0.1778,2669.8,2668.7,0.3751]
[1730288215796,0.1778,2669.8,2668.9,0.3751]
[1730288216485,0.1778,2669.8,2669.1,0.3751]
[1730288216984,0.1778,2669.8,2669.2,0.10343413]
[1730288217354,0.1778,2669.8,2669.3,0.3751]
[1730288218514,0.1778,2669.8,2668.8,0.33751]
[1730288218515,0.1778,2669.8,2668.9,0.3751]
[1730288218892,0.1778,2669.8,2669.1,0.3751]
[1730288219307,0.1778,2669.8,2669.2,0.10343413]
[1730288219982,0.1778,2669.8,2669.1,0.3751]
[1730288220186,0.1778,2669.8,2669.3,0.10021851]
[1730288220493,0.1778,2669.8,2669.1,0.3751]
[1730288220674,0.1778,2669.8,2669.2,0.10021851]
[1730288221388,0.1778,2669.8,2668.9,0.3751]
[1730288221596,0.1778,2669.8,2669.3,0.10021851]
[1730288221788,0.1778,2669.8,2668.9,0.3751]
[1730288222113,0.1778,2669.8,2669.1,0.3751]
[1730288222677,0.1778,2669.8,2669.2,0.10023727]
[1730288223713,0.1778,2669.8,2668.9,0.3751]
[1730288223890,0.1778,2669.8,2669.3,0.10023727]
[1730288224090,0.1778,2669.8,2668.9,0.3751]
[1730288224287,0.1778,2669.8,2669.1,0.3751]
[1730288224514,1.61807086,2669.7,2669.1,0.3751]
[1730288224710,0.1778,2669.6,2669.2,0.10023727]
[1730288225738,0.1778,2669.6,2668.9,0.3751]
[1730288225925,0.1778,2669.6,2669.3,0.10023727]
[1730288226220,0.1778,2669.6,2669.1,0.3751]
[1730288226409,0.1778,2669.6,2669.4,0.10023727]
[1730288226616,0.1778,2669.6,2669.1,0.3751]
[1730288227080,0.1778,2669.6,2669.2,0.47533727]
[1730288230634,0.1778,2670.1,2669.2,0.47533727]
[1730288232329,0.1778,2670.1,2669.3,0.7769]
[1730288232653,0.1778,2670.1,2669.2,0.47533727]
[1730288232945,0.1778,2670.1,2669.3,0.09614595]
[1730288233148,0.1778,2670.1,2669.3,0.17107006]
[1730288233459,0.1778,2670.1,2669.4,0.8158]
[1730288233948,0.1778,2670.1,2669.5,0.47124863]
[1730288236393,0.1778,2670.1,2669.5,0.54615948]
[1730288237625,0.1778,2670.4,2669.7,0.762]
[1730288237851,0.1778,2670.4,2669.8,0.55]
[1730288238056,0.1778,2671.0,2670.0,0.55]
[1730288238353,0.1778,2671.0,2670.1,0.09605219]
[1730288240058,0.1778,2670.8,2670.1,0.09605219]
[1730288242163,0.1778,2670.8,2669.9,1.1815]
[1730288242363,0.1778,2670.8,2670.2,0.09605219]
[1730288242570,0.1778,2670.8,2669.9,1.1815]
[1730288242770,0.1778,2670.8,2670.3,0.09605219]
[1730288243066,0.1778,2670.8,2670.4,0.0956906]
[1730288243293,0.1778,2670.8,2669.8,0.3751]
[1730288243570,0.1778,2670.8,2669.7,0.55]
[1730288243571,0.1778,2670.7,2669.7,0.55]
[1730288243974,0.1778,2670.7,2669.8,0.09570131]
[1730288245956,0.1778,2670.7,2669.9,0.7648]
[1730288246344,0.1778,2670.7,2670.0,0.09570399]
[1730288247373,0.1778,2670.7,2670.1,0.3751]
[1730288247875,0.76394073,2670.9,2670.3,1.1299]
[1730288248172,0.1778,2671.2,2670.4,0.9251]
[1730288248373,0.1778,2671.2,2670.6,0.9251]
[1730288248666,0.1778,2671.7,2670.8,0.3751]
[1730288248963,0.1778,2671.7,2670.9,0.0956906]
[1730288252760,0.1778,2671.7,2670.7,0.8011]
[1730288253369,3.6146839,2671.6,2670.8,0.0956906]
[1730288253573,0.1778,2671.5,2670.8,0.0956906]
[1730288257475,0.1778,2671.5,2670.6,0.55]
[1730288257678,0.1778,2671.5,2670.7,0.56338647]
[1730288258403,0.1778,2671.5,2670.8,0.07487613]
[1730288258606,0.1778,2671.5,2670.7,0.56338647]
[1730288258802,0.1778,2671.5,2670.9,0.09528106]
[1730288259006,0.1778,2671.5,2670.9,0.7725]
[1730288259505,0.1778,2671.5,2671.0,0.09528373]
[1730288260697,0.1778,2671.4,2671.1,0.09527035]
[1730288260907,0.1778,2671.4,2670.3,0.7725]
[1730288261200,0.1778,2671.4,2670.4,0.09527303]
[1730288267899,3.7924839,2671.3,2670.4,0.09527303]
[1730288268216,0.1778,2671.2,2670.4,0.09527303]
[1730288268807,0.1778,2671.2,2670.5,0.55]
[1730288269190,0.1778,2671.2,2670.6,0.09536935]
[1730288269813,0.1778,2671.1,2670.6,0.09536935]
[1730288270220,0.1778,2671.1,2670.3,1.1476]
[1730288270426,0.1778,2671.1,2670.7,0.09536935]
[1730288270590,0.1778,2671.1,2670.3,1.1476]
[1730288270793,0.1778,2671.1,2670.8,0.09536935]
[1730288271084,0.1778,2671.1,2670.3,1.1476]
[1730288271416,0.1778,2671.1,2670.4,0.09536935]
[1730288282626,0.1778,2671.1,2670.5,0.3751]
[1730288283131,0.1778,2671.1,2670.6,0.09393549]
[1730288283696,0.1778,2671.1,2670.4,0.3751]
[1730288283903,0.1778,2671.1,2670.5,0.09393549]
[1730288285333,0.1778,2670.6,2670.5,0.09393549]
[1730288285706,1.79386948,2670.6,2670.5,0.09393549]
[1730288285795,1.61606948,2670.6,2669.8,0.7884]
[1730288285999,1.79386948,2670.4,2669.5,0.8032]
[1730288286439,1.79386948,2670.4,2669.6,0.61652695]
[1730288286597,0.1778,2670.4,2669.6,0.61652695]
[1730288286792,0.1778,2670.4,2669.7,0.55]
[1730288287238,0.1778,2670.4,2669.8,0.07490028]
[1730288289171,0.1778,2670.4,2669.6,0.55]
[1730288290071,0.1778,2670.4,2669.4,0.55]
[1730288290865,0.1778,2670.3,2669.3,0.8198]
[1730288292573,0.1778,2670.3,2669.4,0.08170783]
[1730288293169,3.61302317,2669.8,2669.4,0.08170783]
[1730288293386,3.61302317,2669.5,2669.4,0.08170783]
[1730288293537,0.1778,2669.4,2668.3,0.8169]
[1730288293733,0.1778,2669.4,2668.4,0.07390619]
[1730288294080,3.01,2670.1,2668.4,0.07390619]
[1730288294081,0.1778,2669.1,2668.4,0.07390619]
[1730288294373,0.1778,2669.1,2668.3,0.8169]
[1730288294738,0.1778,2669.1,2668.4,0.07403345]
[1730288294938,0.1778,2669.1,2668.3,0.8169]
[1730288295282,0.1778,2669.1,2668.4,0.07414749]
[1730288298037,0.1778,2669.1,2668.2,0.55]
[1730288298473,0.1778,2669.1,2668.3,0.07413423]
[1730288299002,3.61302317,2668.9,2668.3,0.07413423]
[1730288299140,0.1778,2668.8,2668.3,0.07413423]
[1730288299339,0.1778,2668.8,2667.9,0.55]
[1730288299543,0.1778,2668.8,2667.8,0.7952]
[1730288299544,0.1778,2668.8,2668.0,0.07419259]
[1730288299842,0.1778,2668.8,2668.1,0.07495196]
[1730288300049,0.1778,2668.8,2668.1,0.07419259]
[1730288300285,0.1778,2668.8,2668.2,0.07494737]
[1730288300694,0.1778,2668.8,2668.3,0.07422177]
[1730288300984,0.1778,2668.8,2667.9,0.55]
[1730288301153,0.1778,2668.8,2668.4,0.07422177]
[1730288301354,0.1778,2668.8,2668.0,0.43452]
[1730288301593,0.1778,2668.8,2668.1,1.45662177]
[1730288304963,0.1778,2668.8,2668.1,4.45662177]